bitfinex/quotes_BTCUSD_20230831
["timestamp","ask_amount","ask_price","bid_price","bid_amount"]
[1693440001912,0.34879851,27326.0,27325.0,3.83465]
[1693440003081,0.34879851,27326.0,27325.0,4.01465]
[1693440004202,0.17336,27326.0,27325.0,4.01465]
[1693440004837,0.17336,27326.0,27325.0,3.18272]
[1693440005056,0.17336,27326.0,27325.0,3.28272]
[1693440006747,0.17336,27326.0,27325.0,3.22272]
[1693440006951,0.17336,27326.0,27325.0,3.20272]
[1693440007348,0.17336,27326.0,27325.0,3.18272]
[1693440007931,0.39270337,27326.0,27325.0,3.18272]
[1693440008142,0.8253421,27326.0,27325.0,3.18272]
[1693440008781,1.00082698,27326.0,27325.0,3.18272]
[1693440009774,1.00083953,27326.0,27325.0,3.18272]
[1693440011049,1.00090103,27326.0,27325.0,3.18272]
[1693440011654,0.82538904,27326.0,27325.0,3.18272]
[1693440015646,0.60599905,27326.0,27325.0,3.18272]
[1693440017991,0.85354344,27326.0,27325.0,3.18272]
[1693440018978,0.87517562,27326.0,27325.0,3.18272]
[1693440020816,0.87517562,27326.0,27325.0,2.45079]
[1693440027472,1.13844361,27326.0,27325.0,2.45079]
[1693440027692,0.86926704,27326.0,27325.0,1.71886]
[1693440027893,0.86926704,27326.0,27325.0,0.18]
[1693440027894,1.21174502,27326.0,27325.0,0.18]
[1693440028093,1.46585696,27326.0,27325.0,0.18]
[1693440029874,2.30972713,27326.0,27325.0,0.18]
[1693440030937,2.44972713,27326.0,27325.0,0.18]
[1693440031167,3.98853313,27326.0,27325.0,0.18]
[1693440031375,4.28470962,27326.0,27325.0,0.18]
[1693440031854,3.98853313,27326.0,27325.0,0.18]
[1693440032067,3.91353313,27326.0,27325.0,0.18]
[1693440038571,3.90853313,27326.0,27325.0,0.18]
[1693440038923,3.93653313,27326.0,27325.0,0.183]
[1693440039295,3.93277313,27326.0,27325.0,0.183]
[1693440039479,3.96577313,27326.0,27325.0,0.186]
[1693440039703,3.93277313,27326.0,27325.0,0.183]
[1693440039881,3.96577313,27326.0,27325.0,0.186]
[1693440040284,3.93777313,27326.0,27325.0,0.183]
[1693440040505,4.27363154,27326.0,27325.0,0.186]
[1693440040708,3.96577313,27326.0,27325.0,0.186]
[1693440043505,3.96577313,27326.0,27325.0,1e-08]
[1693440044059,4.24545371,27326.0,27325.0,1e-08]
[1693440044870,4.2216107,27326.0,27325.0,1e-08]
[1693440045376,3.96577313,27326.0,27325.0,1e-08]
[1693440050121,3.99500405,27326.0,27325.0,1e-08]
[1693440051760,4.30024349,27326.0,27325.0,1e-08]
[1693440051963,3.99500405,27326.0,27325.0,1e-08]
[1693440052315,4.19179173,27326.0,27325.0,1e-08]
[1693440052544,3.96577313,27326.0,27325.0,1e-08]
[1693440052751,4.20754127,27326.0,27325.0,1e-08]
[1693440054092,4.18754127,27326.0,27325.0,1e-08]
[1693440057094,4.40796945,27326.0,27325.0,1e-08]
[1693440057291,4.18754127,27326.0,27325.0,1e-08]
[1693440059084,4.08754127,27326.0,27325.0,1e-08]
[1693440059278,4.18754127,27326.0,27325.0,1e-08]
[1693440059720,4.06754127,27326.0,27325.0,1e-08]
[1693440059895,4.18754127,27326.0,27325.0,1e-08]
[1693440061343,4.06754127,27326.0,27325.0,1e-08]
[1693440061552,4.18754127,27326.0,27325.0,1e-08]
[1693440062563,4.06754127,27326.0,27325.0,0.18000001]
[1693440062788,4.18754127,27326.0,27325.0,0.18000001]
[1693440064359,4.18754127,27326.0,27325.0,1e-08]
[1693440065618,4.48371776,27326.0,27325.0,1e-08]
[1693440069465,3.75181476,27326.0,27325.0,1e-08]
[1693440070300,1.26398502,27326.0,27325.0,2.19579001]
[1693440070494,1.09938502,27326.0,27325.0,2.19579001]
[1693440070768,0.75703603,27326.0,27325.0,2.27079001]
[1693440078383,0.75703603,27326.0,27325.0,2.19579001]
[1693440079018,0.75703603,27326.0,27325.0,2.27079001]
[1693440079812,0.49363905,27326.0,27325.0,2.27079001]
[1693440081892,0.62149377,27326.0,27325.0,1e-08]
[1693440082248,1.05413282,27326.0,27325.0,1e-08]
[1693440082618,1.05413282,27326.0,27325.0,0.73193001]
[1693440083556,1.05413282,27326.0,27325.0,1.46386001]
[1693440086375,1.05413282,27326.0,27325.0,2.19579001]
[1693440093849,0.79073584,27326.0,27325.0,2.19579001]
[1693440094026,0.49363905,27326.0,27325.0,2.19579001]
[1693440094825,0.91603603,27326.0,27325.0,2.19579001]
[1693440096025,1.23262527,27326.0,27325.0,2.19579001]
[1693440101531,0.79998622,27326.0,27325.0,2.19579001]
[1693440101736,1.23262527,27326.0,27325.0,2.19579001]
[1693440104693,1.81285155,27326.0,27325.0,2.19579001]
[1693440104909,1.23262527,27326.0,27325.0,2.19579001]
[1693440105732,1.81299194,27326.0,27325.0,2.19579001]
[1693440105966,1.81299201,27326.0,27325.0,2.19579001]
[1693440106383,1.54959503,27326.0,27325.0,1.46386001]
[1693440108198,1.91567414,27326.0,27325.0,1e-08]
[1693440108493,3.01365625,27326.0,27325.0,1e-08]
[1693440108904,2.28175325,27326.0,27325.0,1e-08]
[1693440109244,2.28175325,27326.0,27325.0,0.73193001]
[1693440109463,1.91567414,27326.0,27325.0,0.73193001]
[1693440110505,1.91567414,27326.0,27325.0,1.46386001]
[1693440113746,1.5990849,27326.0,27325.0,2.19579001]
[1693440120976,1.07400579,27326.0,27325.0,2.27079001]
[1693440121188,0.75726233,27326.0,27325.0,2.27079001]
[1693440126167,0.49363905,27326.0,27325.0,2.27079001]
[1693440139431,0.76519667,27326.0,27325.0,1.46386001]
[1693440139637,0.76522743,27326.0,27325.0,1.46386001]
[1693440140078,0.93042743,27326.0,27325.0,1.46386001]
[1693440140283,0.93042743,27326.0,27325.0,0.73193001]
[1693440140836,0.65886981,27326.0,27325.0,0.73193001]
[1693440141055,0.65886981,27326.0,27325.0,1.46386001]
[1693440141877,0.97206097,27326.0,27325.0,2.19579001]
[1693440142927,0.65886981,27326.0,27325.0,2.19579001]
[1693440147961,0.9786335,27326.0,27325.0,2.19579001]
[1693440150800,0.8134335,27326.0,27325.0,2.19579001]
[1693440151215,1.07691969,27326.0,27325.0,2.19579001]
[1693440151650,0.757156,27326.0,27325.0,2.19579001]
[1693440152263,1.03071635,27326.0,27325.0,2.19579001]
[1693440154360,0.757156,27326.0,27325.0,2.19579001]
[1693440165586,1.31024594,27326.0,27325.0,2.19579001]
[1693440167356,0.757156,27326.0,27325.0,2.19579001]
[1693440169986,0.32448619,27326.0,27325.0,2.19579001]
[1693440170218,1.30815173,27326.0,27325.0,2.19579001]
[1693440170422,0.757156,27326.0,27325.0,2.19579001]
[1693440172591,1.04299773,27326.0,27325.0,2.19579001]
[1693440173681,1.0429308,27326.0,27325.0,2.19579001]
[1693440175346,1.28141178,27326.0,27325.0,2.19579001]
[1693440175780,1.28141178,27326.0,27325.0,1.46386001]
[1693440176607,1.43851178,27326.0,27325.0,1.46386001]
[1693440176806,1.43851178,27326.0,27325.0,2.19579001]
[1693440177215,1.43851178,27326.0,27325.0,1.46386001]
[1693440178050,1.43851178,27326.0,27325.0,2.19579001]
[1693440179096,1.43851178,27326.0,27325.0,1.46386001]
[1693440180357,1.43851178,27326.0,27325.0,2.19579001]
[1693440182697,1.2000308,27326.0,27325.0,2.19579001]
[1693440183835,0.91441689,27326.0,27325.0,2.19579001]
[1693440186254,0.2181,27326.0,27325.0,2.19579001]
[1693440186470,1.19899151,27326.0,27325.0,2.19579001]
[1693440186671,1.48585697,27326.0,27325.0,1.46386001]
[1693440187765,1.56507062,27326.0,27325.0,1e-08]
[1693440187988,1.62868472,27326.0,27325.0,1e-08]
[1693440188193,3.3413022,27326.0,27325.0,1e-08]
[1693440188585,2.6093992,27326.0,27325.0,1e-08]
[1693440189440,2.90601854,27326.0,27325.0,1e-08]
[1693440189625,3.32531893,27326.0,27325.0,1e-08]
[1693440189972,3.62805388,27326.0,27325.0,1e-08]
[1693440190730,3.32531893,27326.0,27325.0,1e-08]
[1693440190985,3.59900341,27326.0,27325.0,1e-08]
[1693440191179,3.30238407,27326.0,27325.0,1e-08]
[1693440199718,3.02869959,27326.0,27325.0,1e-08]
[1693440199918,3.27671497,27326.0,27325.0,1e-08]
[1693440203030,3.02869959,27326.0,27325.0,1e-08]
[1693440204012,3.28520642,27326.0,27325.0,1e-08]
[1693440204627,3.02869959,27326.0,27325.0,1e-08]
[1693440204887,3.33192593,27326.0,27325.0,1e-08]
[1693440205043,3.02869959,27326.0,27325.0,1e-08]
[1693440205247,3.26791805,27326.0,27325.0,1e-08]
[1693440213017,2.53601505,27326.0,27325.0,1e-08]
[1693440213595,1.80411205,27326.0,27325.0,1e-08]
[1693440225953,2.53601505,27326.0,27325.0,1e-08]
[1693440231152,2.83263439,27326.0,27325.0,1e-08]
[1693440233725,2.59341593,27326.0,27325.0,1e-08]
[1693440234320,2.593412,27326.0,27325.0,1e-08]
[1693440234756,2.29679659,27326.0,27325.0,1e-08]
[1693440235071,2.88061913,27326.0,27325.0,1e-08]
[1693440238162,2.89150359,27326.0,27325.0,1e-08]
[1693440244205,2.15960059,27326.0,27325.0,1e-08]
[1693440244411,1.86299269,27326.0,27325.0,1e-08]
[1693440251987,2.15960059,27326.0,27325.0,1e-08]
[1693440252761,2.89150359,27326.0,27325.0,1e-08]
[1693440257032,2.15960059,27326.0,27325.0,1e-08]
[1693440257770,1.86299269,27326.0,27325.0,1e-08]
[1693440259127,2.15960059,27326.0,27325.0,1e-08]
[1693440260138,3.62340659,27326.0,27325.0,1e-08]
[1693440260342,4.34495835,27326.0,27325.0,1e-08]
[1693440261389,4.07721049,27326.0,27325.0,1e-08]
[1693440261746,4.31741049,27326.0,27325.0,1e-08]
[1693440263047,4.28941049,27326.0,27321.0,0.732021]
[1693440263234,0.26363947,27323.0,27321.0,0.732021]
[1693440263443,0.44558058,27323.0,27321.0,0.732021]
[1693440263686,0.43272122,27322.0,27321.0,0.732021]
[1693440264039,0.43272122,27322.0,27321.0,0.735021]
[1693440264247,2.05983619,27322.0,27321.0,0.003]
[1693440264446,2.79184619,27322.0,27321.0,0.003]
[1693440264650,3.25234554,27322.0,27321.0,0.003]
[1693440265258,3.27634554,27322.0,27321.0,0.005]
[1693440265431,3.27634554,27322.0,27321.0,0.002]
[1693440265629,3.26834554,27322.0,27321.0,0.002]
[1693440265831,3.30534554,27322.0,27321.0,0.005]
[1693440266032,3.28934554,27322.0,27321.0,0.003]
[1693440266435,3.32534554,27322.0,27321.0,0.004]
[1693440267126,3.49084554,27322.0,27321.0,0.004]
[1693440268485,2.96181968,27322.0,27321.0,0.004]
[1693440268710,3.47822844,27322.0,27321.0,0.004]
[1693440269348,2.96181968,27322.0,27321.0,0.004]
[1693440269542,3.22527403,27322.0,27321.0,0.004]
[1693440269739,3.24527403,27322.0,27321.0,0.004]
[1693440271886,2.94337468,27322.0,27321.0,0.004]
[1693440272514,3.20747786,27322.0,27321.0,0.004]
[1693440274502,2.94337468,27322.0,27321.0,0.004]
[1693440274703,3.20386638,27322.0,27321.0,0.004]
[1693440275079,2.94337468,27322.0,27321.0,0.004]
[1693440275998,3.67538468,27322.0,27321.0,0.004]
[1693440277240,3.75038468,27322.0,27321.0,0.004]
[1693440281402,3.9977235,27322.0,27321.0,0.004]
[1693440281966,4.4031235,27322.0,27321.0,0.004]
[1693440282715,4.3671235,27322.0,27321.0,0.003]
[1693440282926,4.4031235,27322.0,27321.0,0.003]
[1693440283525,4.3671235,27322.0,27321.0,0.003]
[1693440283726,4.3661235,27322.0,27315.0,1.560476]
[1693440283946,0.08775088,27316.0,27315.0,1.560476]
[1693440284992,0.08775088,27316.0,27315.0,1.561476]
[1693440285411,0.08775088,27316.0,27315.0,1.560476]
[1693440285542,0.09075088,27316.0,27315.0,1.561476]
[1693440286331,0.39327582,27316.0,27315.0,1.561476]
[1693440286526,0.39427582,27316.0,27315.0,1.562476]
[1693440290447,0.76035493,27316.0,27315.0,0.098109]
[1693440290647,0.80423038,27316.0,27315.0,0.098109]
[1693440291808,3.07780089,27316.0,27315.0,0.023109]
[1693440292019,3.47985325,27316.0,27315.0,0.023109]
[1693440292509,0.94763324,27316.0,27315.0,0.023109]
[1693440292696,0.67615487,27316.0,27315.0,0.022109]
[1693440292915,0.71215487,27316.0,27315.0,0.022109]
[1693440293061,0.70915487,27316.0,27315.0,0.021109]
[1693440293413,0.70915487,27316.0,27315.0,0.022109]
[1693440293621,1.44132587,27316.0,27315.0,0.022109]
[1693440293854,1.47732587,27316.0,27315.0,0.022109]
[1693440294493,1.77831403,27316.0,27315.0,0.022109]
[1693440295323,2.04892848,27316.0,27315.0,0.022109]
[1693440296686,2.26830569,27316.0,27315.0,0.022109]
[1693440298438,2.09280392,27316.0,27315.0,0.022109]
[1693440298629,2.26822485,27316.0,27315.0,0.022109]
[1693440300488,1.23506569,27316.0,27315.0,0.754307]
[1693440302185,1.23506569,27316.0,27315.0,1.486505]
[1693440303783,1.01568848,27316.0,27315.0,1.486505]
[1693440305634,1.23506569,27316.0,27315.0,1.486505]
[1693440305840,1.01568848,27316.0,27315.0,1.486505]
[1693440306459,1.23506569,27316.0,27315.0,1.486505]
[1693440307903,1.05964476,27316.0,27315.0,1.486505]
[1693440308107,1.23515704,27316.0,27315.0,1.486505]
[1693440308512,1.05964476,27316.0,27315.0,1.486505]
[1693440311077,0.69356565,27316.0,27315.0,1.486505]
[1693440312007,0.95331635,27316.0,27315.0,1.486505]
[1693440312453,0.73393914,27316.0,27315.0,0.022109]
[1693440312705,0.95339701,27316.0,27315.0,0.022109]
[1693440314408,1.11719701,27316.0,27315.0,0.022109]
[1693440314583,2.72816025,27316.0,27315.0,0.022109]
[1693440314981,3.46033125,27316.0,27315.0,0.022109]
[1693440315201,3.48033125,27316.0,27315.0,0.022109]
[1693440321707,2.74816025,27316.0,27315.0,0.022109]
[1693440322472,2.58436025,27316.0,27315.0,0.022109]
[1693440323511,2.74306025,27316.0,27315.0,0.022109]
[1693440326111,2.72306025,27316.0,27315.0,0.022109]
[1693440333759,2.98631291,27316.0,27315.0,0.022109]
[1693440348779,2.97142474,27316.0,27315.0,0.022109]
[1693440355347,3.45359946,27316.0,27315.0,0.022109]
[1693440356426,3.18996103,27316.0,27315.0,0.022109]
[1693440356630,3.45367823,27316.0,27315.0,0.022109]
[1693440357428,3.18996103,27316.0,27315.0,0.022109]
[1693440366347,3.92213203,27316.0,27315.0,0.022109]
[1693440373745,3.66238133,27316.0,27315.0,0.022109]
[1693440374482,3.9060979,27316.0,27315.0,0.022109]
[1693440376222,3.7473979,27316.0,27315.0,0.022109]
[1693440377319,3.50368133,27316.0,27315.0,0.022109]
[1693440377522,3.7822767,27316.0,27315.0,0.022109]
[1693440378147,3.9408767,27316.0,27315.0,0.022109]
[1693440379892,3.66228133,27316.0,27315.0,0.022109]
[1693440380094,3.68228133,27316.0,27315.0,0.022109]
[1693440380624,3.98426456,27316.0,27315.0,0.022109]
[1693440383180,3.82566456,27316.0,27315.0,0.022109]
[1693440383615,3.98146456,27316.0,27315.0,0.022109]
[1693440388964,3.69948133,27316.0,27315.0,0.022109]
[1693440389172,4.01607456,27316.0,27315.0,0.022109]
[1693440391084,3.71948133,27316.0,27315.0,0.022109]
[1693440392130,4.01607456,27316.0,27315.0,0.022109]
[1693440392930,3.99307723,27316.0,27315.0,0.022109]
[1693440393370,4.01607456,27316.0,27315.0,0.022109]
[1693440394235,3.98007456,27316.0,27315.0,0.021109]
[1693440394610,4.01607456,27316.0,27315.0,0.021109]
[1693440394807,3.98007456,27316.0,27315.0,0.021109]
[1693440395037,4.01607456,27316.0,27315.0,0.021109]
[1693440395451,3.94407456,27316.0,27315.0,0.021109]
[1693440395602,3.98007456,27316.0,27315.0,0.021109]
[1693440395801,4.01607456,27316.0,27315.0,0.021109]
[1693440398370,4.89418148,27316.0,27315.0,0.021109]
[1693440398613,4.59758825,27316.0,27315.0,0.021109]
[1693440398819,4.89417591,27316.0,27315.0,0.021109]
[1693440400491,4.47646899,27316.0,27315.0,0.021109]
[1693440409356,4.47646899,27316.0,27315.0,1e-08]
[1693440410621,4.46741602,27316.0,27315.0,1e-08]
[1693440412295,4.52467817,27316.0,27315.0,1e-08]
[1693440419230,4.52467817,27316.0,27313.0,0.02104901]
[1693440419231,4.62056821,27316.0,27313.0,0.02104901]
[1693440419420,0.96653911,27314.0,27313.0,0.02104901]
[1693440419655,2.03033983,27314.0,27313.0,0.02104901]
[1693440419881,6.57018217,27314.0,27313.0,0.02104901]
[1693440420112,7.19773968,27314.0,27313.0,0.02104901]
[1693440420343,6.76379344,27314.0,27313.0,0.02104901]
[1693440420544,6.65171096,27314.0,27313.0,0.02104901]
[1693440420956,6.76271096,27314.0,27313.0,0.02104901]
[1693440421139,6.72671096,27314.0,27313.0,0.02104901]
[1693440421335,6.76271096,27314.0,27313.0,0.02104901]
[1693440422108,6.79871096,27314.0,27313.0,0.02104901]
[1693440422306,7.16479007,27314.0,27313.0,0.02104901]
[1693440422734,7.20142458,27314.0,27313.0,0.02104901]
[1693440424242,7.20136458,27314.0,27313.0,0.02104901]
[1693440424803,7.90136458,27314.0,27313.0,0.02104901]
[1693440428711,7.53528547,27314.0,27313.0,0.02104901]
[1693440429343,7.53528547,27314.0,27306.0,0.1822]
[1693440429344,0.02,27308.0,27306.0,0.1822]
[1693440429552,1.83090311,27307.0,27305.0,0.021109]
[1693440429756,0.60184353,27306.0,27305.0,0.021109]
[1693440431222,0.63784353,27306.0,27305.0,0.021109]
[1693440432214,0.67384353,27306.0,27305.0,0.021109]
[1693440437757,1.03992264,27306.0,27305.0,0.021109]
[1693440437982,2.06175709,27306.0,27305.0,0.021109]
[1693440438800,2.02575709,27306.0,27305.0,0.021109]
[1693440439136,1.98975709,27306.0,27305.0,0.021109]
[1693440439360,1.25731809,27306.0,27305.0,0.021109]
[1693440439500,1.32931809,27306.0,27305.0,0.021109]
[1693440439900,0.67384353,27306.0,27305.0,0.021109]
[1693440441193,0.63784353,27306.0,27305.0,0.021109]
[1693440441378,0.67384353,27306.0,27305.0,0.021109]
[1693440442496,0.84907825,27306.0,27305.0,0.021109]
[1693440442903,0.84908164,27306.0,27305.0,0.021109]
[1693440443315,0.67384353,27306.0,27305.0,0.021109]
[1693440443839,0.62990912,27306.0,27305.0,0.021109]
[1693440444073,0.8490841,27306.0,27305.0,0.021109]
[1693440445740,0.62990912,27306.0,27305.0,0.021109]
[1693440448435,0.8490841,27306.0,27305.0,0.021109]
[1693440451254,0.67384353,27306.0,27305.0,0.021109]
[1693440457249,0.45466855,27306.0,27305.0,0.021109]
[1693440459096,3.5840376,27306.0,27305.0,0.021109]
[1693440459387,2.58858853,27306.0,27305.0,0.021109]
[1693440459788,2.74898853,27306.0,27305.0,0.021109]
[1693440461727,3.0119986,27306.0,27305.0,0.021109]
[1693440463818,3.15691014,27306.0,27305.0,0.021109]
[1693440464278,2.280164,27306.0,27305.0,0.021109]
[1693440464910,2.4246584,27306.0,27305.0,0.021109]
[1693440471327,3.1570974,27306.0,27305.0,0.021109]
[1693440471684,2.4246584,27306.0,27305.0,0.021109]
[1693440472636,3.1570974,27306.0,27305.0,0.021109]
[1693440473526,2.4246584,27306.0,27305.0,0.021109]
[1693440476888,3.66157353,27306.0,27305.0,0.021109]
[1693440477655,3.96125971,27306.0,27305.0,0.021109]
[1693440477976,3.66157353,27306.0,27305.0,0.021109]
[1693440478174,3.89189054,27306.0,27305.0,0.021109]
[1693440478499,3.86336219,27306.0,27305.0,0.021109]
[1693440478879,3.82736219,27306.0,27305.0,0.021109]
[1693440479055,3.59704518,27306.0,27305.0,0.021109]
[1693440479479,3.89946603,27306.0,27305.0,0.021109]
[1693440480222,3.86346603,27306.0,27305.0,0.021109]
[1693440480447,3.89946603,27306.0,27305.0,0.021109]
[1693440480637,3.16702703,27306.0,27305.0,0.021109]
[1693440480878,3.89946603,27306.0,27305.0,0.021109]
[1693440481292,3.59704518,27306.0,27305.0,0.021109]
[1693440481684,3.84228808,27306.0,27305.0,0.021109]
[1693440482313,3.89377941,27306.0,27305.0,0.021109]
[1693440482422,3.91357159,27306.0,27305.0,0.021109]
[1693440483370,3.18113259,27306.0,27305.0,0.021109]
[1693440484325,3.53515227,27306.0,27305.0,0.021109]
[1693440487514,3.47786682,27306.0,27305.0,0.021109]
[1693440488292,3.53515208,27306.0,27305.0,0.021109]
[1693440488493,3.47786682,27306.0,27305.0,0.021109]
[1693440488691,3.18113259,27306.0,27305.0,0.021109]
[1693440491775,2.92189188,27306.0,27305.0,0.021109]
[1693440492096,3.20881256,27306.0,27305.0,0.021109]
[1693440492299,2.92189188,27306.0,27305.0,0.021109]
[1693440492496,3.22811615,27306.0,27305.0,0.021109]
[1693440492742,2.92189188,27306.0,27305.0,0.021109]
[1693440493482,3.65433088,27306.0,27305.0,0.021109]
[1693440494445,3.92586845,27306.0,27305.0,0.021109]
[1693440495238,3.65433088,27306.0,27305.0,0.021109]
[1693440495448,3.94071353,27306.0,27305.0,0.021109]
[1693440496352,3.9544863,27306.0,27305.0,0.021109]
[1693440497677,3.95106511,27306.0,27305.0,0.021109]
[1693440497880,3.98080074,27306.0,27305.0,0.021109]
[1693440501534,4.23543244,27306.0,27305.0,0.021109]
[1693440502110,3.98080074,27306.0,27305.0,0.021109]
[1693440502713,4.20914612,27306.0,27305.0,0.021109]
[1693440510627,3.68406651,27306.0,27305.0,0.021109]
[1693440512327,3.64806651,27306.0,27305.0,0.021109]
[1693440512547,3.72406651,27306.0,27305.0,0.021109]
[1693440512751,3.74406651,27306.0,27305.0,0.021109]
[1693440513162,3.70806651,27306.0,27305.0,0.021109]
[1693440513377,3.74406651,27306.0,27305.0,0.021109]
[1693440513598,3.70806651,27306.0,27305.0,0.021109]
[1693440513806,3.67206651,27306.0,27305.0,0.021109]
[1693440514029,3.70806651,27306.0,27305.0,0.021109]
[1693440514913,3.74406651,27306.0,27305.0,0.021109]
[1693440517362,3.70806651,27306.0,27305.0,0.021109]
[1693440518491,3.74406651,27306.0,27305.0,0.021109]
[1693440520376,4.50610102,27306.0,27305.0,0.021109]
[1693440520734,4.68260102,27306.0,27305.0,0.021109]
[1693440521166,4.64660102,27306.0,27305.0,0.021109]
[1693440521618,4.68260102,27306.0,27305.0,0.021109]
[1693440522017,0.12691885,27304.0,27303.0,0.021109]
[1693440522221,4.60150473,27304.0,27303.0,0.021109]
[1693440523310,4.79410473,27304.0,27303.0,0.021109]
[1693440524588,4.83010473,27304.0,27303.0,0.021109]
[1693440525211,4.85121373,27304.0,27303.0,0.021109]
[1693440525418,4.81521373,27304.0,27303.0,0.021109]
[1693440525558,4.77921373,27304.0,27303.0,0.021109]
[1693440526116,4.81521373,27304.0,27303.0,0.021109]
[1693440526784,4.85121373,27304.0,27303.0,0.021109]
[1693440527408,4.81521373,27304.0,27303.0,0.021109]
[1693440527658,4.85121373,27304.0,27303.0,0.021109]
[1693440531708,5.1475643,27304.0,27303.0,0.021109]
[1693440531903,5.46294685,27304.0,27303.0,0.021109]
[1693440532553,4.85121373,27304.0,27303.0,0.021109]
[1693440532756,5.14756075,27304.0,27303.0,0.021109]
[1693440534223,4.85121373,27304.0,27303.0,0.021109]
[1693440534423,5.08142715,27304.0,27303.0,0.021109]
[1693440534830,4.85121373,27304.0,27303.0,0.021109]
[1693440535225,5.07678333,27304.0,27303.0,0.021109]
[1693440536702,3.43096961,27304.0,27303.0,0.021109]
[1693440537516,2.40213473,27304.0,27303.0,0.021109]
[1693440538464,2.38213473,27304.0,27303.0,0.021109]
[1693440538812,2.40213473,27304.0,27303.0,0.021109]
[1693440538999,1.62964173,27304.0,27303.0,0.021109]
[1693440539205,2.36213473,27304.0,27303.0,0.021109]
[1693440539445,1.24272288,27304.0,27303.0,0.021109]
[1693440539648,0.6739133,27304.0,27303.0,1.486149]
[1693440540102,0.37346484,27304.0,27303.0,1.486149]
[1693440540478,0.37346484,27304.0,27303.0,0.021109]
[1693440540479,0.61607916,27304.0,27303.0,0.021109]
[1693440540688,0.65207916,27304.0,27303.0,0.021109]
[1693440541146,0.61607916,27304.0,27303.0,0.021109]
[1693440541282,0.87955662,27304.0,27303.0,0.021109]
[1693440542089,0.91555662,27304.0,27303.0,0.021109]
[1693440542498,0.87955662,27304.0,27303.0,0.021109]
[1693440542886,0.91555662,27304.0,27303.0,0.021109]
[1693440543643,0.74359662,27304.0,27303.0,0.021109]
[1693440543846,0.61411589,27304.0,27303.0,0.021109]
[1693440544053,0.74385215,27304.0,27303.0,0.021109]
[1693440545871,1.10993126,27304.0,27303.0,0.021109]
[1693440546093,3.36416205,27304.0,27303.0,0.021109]
[1693440546308,3.16108641,27304.0,27303.0,0.021109]
[1693440546531,3.45742829,27304.0,27303.0,0.021109]
[1693440547266,3.47742829,27304.0,27303.0,0.021109]
[1693440547732,3.60262829,27304.0,27303.0,0.021109]
[1693440548056,3.56662829,27304.0,27303.0,0.021109]
[1693440548459,3.60262829,27304.0,27303.0,0.021109]
[1693440549524,3.63862829,27304.0,27303.0,0.021109]
[1693440549931,3.34228641,27304.0,27303.0,0.021109]
[1693440550138,3.30628641,27304.0,27303.0,0.021109]
[1693440550372,3.63874916,27304.0,27303.0,0.021109]
[1693440552410,3.90403898,27304.0,27303.0,0.021109]
[1693440553402,3.63874916,27304.0,27303.0,0.021109]
[1693440554565,3.34228641,27304.0,27303.0,0.021109]
[1693440555127,3.64588331,27304.0,27303.0,0.021109]
[1693440555339,3.93384987,27304.0,27303.0,0.021109]
[1693440562713,3.64588331,27304.0,27303.0,0.021109]
[1693440563267,3.94702021,27304.0,27303.0,0.021109]
[1693440564051,3.64588331,27304.0,27303.0,0.021109]
[1693440564254,3.93273857,27304.0,27303.0,0.021109]
[1693440565441,3.64588331,27304.0,27303.0,0.021109]
[1693440565942,3.89288653,27304.0,27303.0,0.021109]
[1693440567868,3.92255179,27304.0,27303.0,0.021109]
[1693440568301,1.70507279,27304.0,27303.0,0.021109]
[1693440568511,1.43920753,27304.0,27303.0,0.021109]
[1693440568720,1.38191706,27304.0,27303.0,0.021109]
[1693440569753,1.13491384,27304.0,27303.0,0.021109]
[1693440571774,0.76883473,27304.0,27303.0,2.218669]
[1693440571982,0.3755969,27304.0,27303.0,2.218669]
[1693440572187,0.56883473,27304.0,27303.0,1.486149]
[1693440572584,0.1755969,27304.0,27303.0,1.486149]
[1693440572797,0.037,27304.0,27303.0,1.489149]
[1693440573042,0.43023783,27304.0,27303.0,1.489149]
[1693440573416,0.46723783,27304.0,27303.0,1.492149]
[1693440574229,0.43023783,27304.0,27303.0,1.489149]
[1693440574483,0.39323783,27304.0,27303.0,1.486149]
[1693440574637,0.036,27304.0,27303.0,1.490149]
[1693440574852,0.46523783,27304.0,27303.0,1.494149]
[1693440576320,0.46523783,27304.0,27303.0,0.761629]
[1693440577363,0.46523783,27304.0,27303.0,0.029109]
[1693440579215,0.75244154,27304.0,27303.0,0.029109]
[1693440579418,3.02492054,27304.0,27303.0,0.029109]
[1693440579620,3.08221056,27304.0,27303.0,0.029109]
[1693440580206,3.44828967,27304.0,27303.0,0.029109]
[1693440580402,3.74446254,27304.0,27303.0,0.029109]
[1693440581234,3.01196954,27304.0,27303.0,0.029109]
[1693440581449,2.71579667,27304.0,27303.0,0.029109]
[1693440581657,3.01196954,27304.0,27303.0,0.029109]
[1693440582214,3.17096954,27304.0,27303.0,0.029109]
[1693440585919,2.87479667,27304.0,27303.0,0.029109]
[1693440587291,3.46399773,27304.0,27303.0,0.029109]
[1693440587826,3.16782486,27304.0,27303.0,0.029109]
[1693440592285,3.46399773,27304.0,27303.0,0.029109]
[1693440595840,3.61311415,27304.0,27303.0,0.029109]
[1693440596677,3.45411415,27304.0,27303.0,0.029109]
[1693440596919,3.75736515,27304.0,27303.0,0.029109]
[1693440598387,3.78604399,27304.0,27303.0,0.029109]
[1693440599537,3.75736515,27304.0,27303.0,0.029109]
[1693440600218,3.45411415,27304.0,27303.0,0.029109]
[1693440600457,3.69619085,27304.0,27303.0,0.029109]
[1693440601103,2.96369785,27304.0,27303.0,0.029109]
[1693440602453,3.12829785,27304.0,27303.0,0.029109]
[1693440603584,3.07100783,27304.0,27303.0,0.029109]
[1693440603712,3.11170529,27304.0,27303.0,0.029109]
[1693440603911,3.40776107,27304.0,27303.0,0.029109]
[1693440605559,3.11170529,27304.0,27303.0,0.029109]
[1693440606160,3.4077623,27304.0,27303.0,0.029109]
[1693440606764,3.11170529,27304.0,27303.0,0.029109]
[1693440608402,3.10670529,27304.0,27303.0,0.029109]
[1693440611210,3.40279156,27304.0,27303.0,0.029109]
[1693440612200,3.10670529,27304.0,27303.0,0.029109]
[1693440613123,3.83919829,27304.0,27303.0,0.029109]
[1693440617952,3.10670529,27304.0,27303.0,0.029109]
[1693440627640,3.59712159,27304.0,27303.0,0.029109]
[1693440628696,3.88905988,27304.0,27303.0,0.029109]